bitfinex/quotes_ETHUSD_20220101
["timestamp","ask_amount","ask_price","bid_price","bid_amount"]
[1641063582849,0.01136847,3753.2,3753.0,1.26607]
[1641063583250,0.01080005,3753.1,3753.0,1.26607]
[1641063585055,0.01080005,3753.1,3753.0,0.3]
[1641063585453,0.01080005,3753.1,3752.8,0.6]
[1641063585887,0.01023162,3753.0,3752.7,0.3570946]
[1641063586086,0.01023162,3753.0,3752.7,0.4400946]
[1641063586288,0.0096632,3752.9,3752.7,0.4400946]
[1641063586487,0.0096632,3752.9,3752.7,1.1062646]
[1641063586687,0.00909478,3752.8,3752.7,1.1062646]
[1641063587091,0.00909478,3752.8,3752.7,0.4400946]
[1641063587288,0.00909478,3752.8,3752.7,0.383]
[1641063588089,0.00909478,3752.8,3752.2,2.66466]
[1641063588090,0.00909478,3752.8,3751.9,5.65367]
[1641063588296,0.00909478,3752.8,3752.0,0.3]
[1641063588493,0.00852635,3752.7,3752.0,1.3]
[1641063588894,0.00795793,3752.6,3752.0,1.3]
[1641063589096,0.00795793,3752.6,3751.9,1.63247]
[1641063589097,0.00795793,3752.6,3751.9,0.3]
[1641063589346,0.00795793,3752.6,3751.8,0.0582]
[1641063589347,0.00738951,3752.5,3751.8,0.0582]
[1641063589550,0.00738951,3752.5,3751.5,0.66637]
[1641063589752,4.35543954,3753.0,3751.5,0.66637]
[1641063589753,0.00682108,3752.4,3751.5,0.66637]
[1641063590153,1.35713718,3752.8,3751.5,0.66637]
[1641063590154,0.00625266,3752.3,3751.6,1.02858179]
[1641063590453,2.16420205,3752.8,3751.5,0.3]
[1641063590454,0.00568424,3752.2,3751.5,0.3]
[1641063590655,0.00568424,3752.2,3751.4,0.3]
[1641063590855,0.00511581,3752.1,3751.3,6.5641]
[1641063591056,0.00511581,3752.1,3751.3,5.23147]
[1641063591253,0.00454739,3752.0,3751.3,1.93267]
[1641063591453,0.00454739,3752.0,3751.4,0.81164613]
[1641063591652,0.00397897,3751.9,3751.4,0.81164613]
[1641063592053,0.00341054,3751.8,3751.4,0.81164613]
[1641063592256,0.00341054,3751.8,3751.4,1.81164613]
[1641063592455,0.00284212,3751.7,3751.5,0.66638]
[1641063592654,0.00284212,3751.7,3751.5,0.96638]
[1641063592856,0.0022737,3751.6,3751.5,1.26638]
[1641063593306,0.0022737,3751.6,3751.5,17.24938]
[1641063593809,0.0022737,3751.6,3751.5,18.24938]
[1641063594411,7.37e-05,3751.6,3751.5,18.24938]
[1641063594610,1.35713718,3753.2,3751.5,18.24938]
[1641063594611,1.35713718,3753.2,3752.3,0.6661162]
[1641063594817,16.88971344,3754.1,3752.7,0.66611]
[1641063594818,0.05709717,3753.8,3752.7,0.66611]
[1641063595010,0.00852635,3753.1,3752.7,0.96611]
[1641063595410,0.00795792,3753.0,3752.7,3.02421442]
[1641063595812,0.0073895,3752.9,3752.7,3.69033562]
[1641063596214,0.00682108,3752.8,3752.7,3.69033562]
[1641063597641,0.00682108,3752.8,3752.7,2.6322312]
[1641063598844,0.00682108,3752.8,3752.7,3.56567715]
[1641063601306,0.00682108,3752.8,3752.7,5.57862073]
[1641063601508,0.00682108,3752.8,3752.7,21.56162073]
[1641063601707,2.7,3753.0,3752.9,15.6]
[1641063601907,2.7,3753.0,3752.9,15.983]
[1641063602106,1.35713718,3754.9,3753.0,6.25]
[1641063602313,8.55743718,3755.5,3754.0,0.66583]
[1641063602513,4.54222133,3755.4,3754.4,0.6658249]
[1641063602910,1.35713718,3755.5,3754.2,16.6]
[1641063603110,1.35713718,3755.8,3754.5,0.3]
[1641063603512,1.35713718,3755.8,3754.3,2.24000829]
[1641063603912,1.35713718,3755.9,3754.9,0.66576]
[1641063604112,1.35713718,3755.9,3754.9,0.96576]
[1641063604356,1.35713718,3755.9,3754.9,0.3]
[1641063604573,1.35713718,3755.9,3754.6,4.4836283]
[1641063604761,1.35713718,3755.9,3754.6,1.6]
[1641063604961,2.14014596,3755.9,3754.9,0.665745]
[1641063605166,2.14014596,3755.9,3754.9,1.0]
[1641063605364,2.14014596,3755.9,3754.9,1.6]
[1641063605561,2.14014596,3755.9,3754.9,0.6]
[1641063605761,0.78300878,3755.9,3754.7,1.6]
[1641063605961,3.48300878,3755.9,3754.7,0.595]
[1641063606161,3.48300878,3755.9,3754.4,0.683]
[1641063606365,4.84014596,3755.9,3754.4,0.683]
[1641063606662,0.0170527,3755.8,3754.3,0.3]
[1641063606964,0.01648428,3755.7,3754.2,2.63163]
[1641063607361,0.01591585,3755.6,3754.2,2.93163]
[1641063607762,0.01534743,3755.5,3754.2,2.93163]
[1641063608200,0.01477901,3755.4,3754.2,2.93163]
[1641063608601,0.01421058,3755.3,3754.4,0.66583]
[1641063608802,0.01421058,3755.3,3754.2,2.93163]
[1641063609103,0.01364216,3755.2,3754.2,18.53243]
[1641063609304,0.01364216,3755.2,3755.0,0.81906212]
[1641063609504,0.01307374,3755.1,3755.0,1.41906212]
[1641063610106,0.27957374,3755.1,3755.0,1.41906212]
[1641063611506,0.27957374,3755.1,3755.0,3.76906212]
[1641063611947,0.27957374,3755.1,3755.0,4.76906212]
[1641063612548,0.27957374,3755.1,3755.0,2.41906212]
[1641063613057,0.27957374,3755.1,3755.0,1.41906212]
[1641063613253,0.27957374,3755.1,3755.0,0.81906212]
[1641063614053,0.27957374,3755.1,3755.0,0.81986212]
[1641063614654,0.27957374,3755.1,3755.0,0.82066212]
[1641063615054,0.27957374,3755.1,3755.0,1.12066212]
[1641063616496,2.97957374,3755.1,3755.0,1.12066212]
[1641063620044,2.97957374,3755.1,3755.0,0.82066212]
[1641063620248,2.97957374,3755.1,3755.0,1.12066212]
[1641063620648,2.97957374,3755.1,3755.0,0.82066212]
[1641063622949,2.97957374,3755.1,3755.0,1.12066212]
[1641063623207,2.97957374,3755.1,3755.0,1.42066212]
[1641063624008,2.97957374,3755.1,3755.0,2.33616212]
[1641063627069,2.97957374,3755.1,3755.0,2.71916212]
[1641063627262,2.97957374,3755.1,3755.0,5.81916212]
[1641063627462,2.97957374,3755.1,3755.0,6.81916212]
[1641063627664,2.97957374,3755.1,3755.0,3.7530094]
[1641063631999,2.98127999,3755.1,3755.0,3.7530094]
[1641063637455,2.98127999,3755.1,3755.0,19.3530094]
[1641063638102,2.98127999,3755.1,3755.0,3.7530094]
[1641063638906,2.98127999,3755.1,3755.0,19.3530094]
[1641063639306,2.98127999,3755.1,3755.0,3.7530094]
[1641063639907,2.96820625,3755.1,3755.0,3.7530094]
[1641063644059,2.96820625,3755.1,3755.0,19.3530094]
[1641063646513,2.96820625,3755.1,3755.0,3.7530094]
[1641063646714,2.96820625,3755.1,3755.0,19.3530094]
[1641063648214,2.96820625,3755.1,3755.0,3.7530094]
[1641063650459,2.96820625,3755.1,3755.0,3.3700094]
[1641063655808,2.96820625,3755.1,3755.0,1.7700094]
[1641063656010,2.96820625,3755.1,3755.0,0.8545094]
[1641063657062,2.96820625,3755.1,3755.0,1.4545094]
[1641063659469,2.96820625,3755.1,3755.0,0.8545094]
[1641063659670,2.96820625,3755.1,3755.0,1.4545094]
[1641063678106,2.96820625,3755.1,3755.0,0.8545094]
[1641063682061,3.66354901,3755.1,3755.0,0.8545094]
[1641063684007,5.02068619,3755.1,3755.0,0.8545094]
[1641063684607,3.66354901,3755.1,3755.0,0.8545094]
[1641063687462,3.51354901,3755.1,3755.0,0.8545094]
[1641063700118,3.51354901,3755.1,3755.0,1.4545094]
[1641063702568,3.51354901,3755.1,3755.0,2.4545094]
[1641063702969,3.51354901,3755.1,3755.0,1.4900334]
[1641063703170,3.51354901,3755.1,3755.0,2.4900334]
[1641063703572,3.51354901,3755.1,3755.0,1.4900334]
[1641063704073,3.51354901,3755.1,3755.0,1.5255574]
[1641063705071,3.51354901,3755.1,3755.0,1.60990232]
[1641063705704,4.87582483,3755.1,3755.0,1.60990232]
[1641063706106,3.51354901,3755.1,3755.0,1.69424724]
[1641063707109,3.51354901,3755.1,3755.0,2.77859216]
[1641063707707,3.51354901,3755.1,3755.0,1.77859216]
[1641063708107,3.51354901,3755.1,3755.0,2.81411616]
[1641063708311,3.51354901,3755.1,3755.0,1.81411616]
[1641063709218,3.51354901,3755.1,3755.0,1.84964016]
[1641063709459,3.51354901,3755.1,3755.0,2.84964016]
[1641063710157,3.51354901,3755.1,3755.0,2.93398508]
[1641063710756,3.51354901,3755.1,3755.0,1.93398508]
[1641063710956,3.51354901,3755.1,3755.0,2.93398508]
[1641063711157,3.51354901,3755.1,3755.0,2.96950908]
[1641063711357,3.51354901,3755.1,3755.0,1.96950908]
[1641063711558,3.51354901,3755.1,3755.0,2.96950908]
[1641063711760,3.51354901,3755.1,3755.0,1.96950908]
[1641063712159,3.51354901,3755.1,3755.0,2.053854]
[1641063712460,3.51354901,3755.1,3755.0,2.05556249]
[1641063713312,3.51354901,3755.1,3755.0,2.1416159]
[1641063714316,3.51354901,3755.1,3755.0,2.22766931]
[1641063714913,3.51354901,3755.1,3755.0,1.92766931]
[1641063715114,3.51354901,3755.1,3755.0,1.62766931]
[1641063715314,3.51354901,3755.1,3755.0,1.71372272]
[1641063715515,3.51354901,3755.1,3755.0,2.01372272]
[1641063716117,3.51354901,3755.1,3755.0,2.31372272]
[1641063716317,3.51354901,3755.1,3755.0,2.39806764]
[1641063716515,3.51354901,3755.1,3755.0,2.39977613]
[1641063717361,3.51354901,3755.1,3755.0,2.43530013]
[1641063717562,3.51354901,3755.1,3755.0,2.43700862]
[1641063718465,3.51354901,3755.1,3755.0,2.52306203]
[1641063718870,3.51354901,3755.1,3755.0,1.92306203]
[1641063719573,3.51354901,3755.1,3755.0,1.96029452]
[1641063720371,3.51354901,3755.1,3755.0,2.56029452]
[1641063720614,3.51354901,3755.1,3755.0,2.63571536]
[1641063721617,3.51354901,3755.1,3755.0,3.75995712]
[1641063721819,2.81820625,3755.1,3755.0,3.75995712]
[1641063722017,2.81820625,3755.1,3755.0,2.75995712]
[1641063722622,2.81820625,3755.1,3755.0,3.88419888]
[1641063722817,2.81820625,3755.1,3755.0,5.19898834]
[1641063723017,2.81820625,3755.1,3755.0,3.88419888]
[1641063723620,2.81820625,3755.1,3755.0,3.95791123]
[1641063723924,2.81820625,3755.1,3755.0,3.35961972]
[1641063724122,2.81820625,3755.1,3755.0,2.35961972]
[1641063724672,2.81820625,3755.1,3755.0,2.43504056]
[1641063725774,2.81820625,3755.1,3755.0,2.5104614]
[1641063726772,2.81820625,3755.1,3755.0,2.63470316]
[1641063726974,2.81820625,3755.1,3755.0,2.63299467]
[1641063727176,2.81820625,3755.1,3755.0,2.52721658]
[1641063727378,2.81820625,3755.1,3755.0,2.43651302]
[1641063727574,2.81820625,3755.1,3755.0,2.18961633]
[1641063727773,2.81820625,3755.1,3755.0,2.51022537]
[1641063728216,2.81820625,3755.1,3755.0,4.11022537]
[1641063728420,2.81820625,3755.1,3755.0,2.81022537]
[1641063728916,2.81820625,3755.1,3755.0,2.93446713]
[1641063729115,2.81820625,3755.1,3755.0,2.93275864]
[1641063729921,2.81820625,3755.1,3755.0,3.05529191]
[1641063730818,2.81820625,3755.1,3755.0,3.09081591]
[1641063731021,2.81820625,3755.1,3755.0,3.12900426]
[1641063731971,2.81820625,3755.1,3755.0,3.20271661]
[1641063732973,2.81820625,3755.1,3755.0,3.27642896]
[1641063733177,2.81820625,3755.1,3755.0,6.64286943]
[1641063733377,2.81820625,3755.1,3755.0,6.94286943]
[1641063734081,2.81820625,3755.1,3755.0,4.64805945]
[1641063734276,2.81820625,3755.1,3755.0,4.64635096]
[1641063734478,2.81820625,3755.1,3755.0,6.99488174]
[1641063735078,2.81820625,3755.1,3755.0,7.03307009]
[1641063735276,2.81955709,3755.1,3755.0,7.03307009]
[1641063735477,2.81955709,3755.1,3755.0,4.68453931]
[1641063736312,2.81955709,3755.1,3755.0,7.05965757]
[1641063736512,2.81955709,3755.1,3755.0,4.68453931]
[1641063736912,2.81955709,3755.1,3755.0,6.99435307]
[1641063737314,2.81955709,3755.1,3755.0,4.68453931]
[1641063737816,2.81955709,3755.1,3755.0,4.64635096]
[1641063738219,2.81955709,3755.1,3755.0,4.64805945]
[1641063738419,2.81955709,3755.1,3755.0,5.31211096]
[1641063740468,2.81955709,3755.1,3755.0,4.64635096]
[1641063740969,2.81955709,3755.1,3755.0,4.61082696]
[1641063741170,2.81955709,3755.1,3755.0,3.01082696]
[1641063741970,2.81955709,3755.1,3755.0,3.04635096]
[1641063742169,2.81955709,3755.1,3755.0,3.01082696]
[1641063742369,2.81955709,3755.1,3755.0,3.01253545]
[1641063742570,2.81955709,3755.1,3755.0,3.01082696]
[1641063743518,2.8178486,3755.1,3755.0,3.01082696]
[1641063743717,2.8178486,3755.1,3755.0,3.31082696]
[1641063743920,2.8178486,3755.1,3755.0,3.61082696]
[1641063744116,2.8178486,3755.1,3755.0,3.56200604]
[1641063744318,2.8178486,3755.1,3755.0,5.88100143]
[1641063744516,2.8178486,3755.1,3755.0,6.88100143]
[1641063744717,2.8178486,3755.1,3755.0,4.56200604]
[1641063745118,2.8178486,3755.1,3755.0,6.90744684]
[1641063746421,2.8178486,3755.1,3755.0,4.56200604]
[1641063746860,2.8178486,3755.1,3755.0,6.89299094]
[1641063747063,2.8178486,3755.1,3755.0,6.88863905]
[1641063747965,2.8178486,3755.1,3755.0,4.56200604]
[1641063748165,2.8178486,3755.1,3755.0,4.64635096]
[1641063748365,2.8178486,3755.1,3755.0,6.94028397]
[1641063748566,2.8178486,3755.1,3755.0,6.99323059]
[1641063748969,2.8178486,3755.1,3755.0,8.36280894]
[1641063749170,2.8178486,3755.1,3755.0,8.32462059]
[1641063749365,2.8178486,3755.1,3755.0,5.94221696]
[1641063751021,2.8178486,3755.1,3755.0,4.98040531]
[1641063751219,2.8178486,3755.1,3755.0,4.94221696]
[1641063751426,2.8178486,3755.1,3755.0,3.01082696]
[1641063751822,7.4178486,3755.1,3755.0,3.01082696]
[1641063752023,9.47546172,3755.1,3755.0,3.01082696]
[1641063752325,9.58186172,3755.1,3755.0,2.96200604]
[1641063752622,8.2203859,3755.1,3755.0,2.96200604]
[1641063752822,8.2195859,3755.1,3755.0,2.96200604]
[1641063753022,8.2203859,3755.1,3755.0,2.96200604]
[1641063753325,8.6049859,3755.1,3755.0,3.08453931]
[1641063753521,8.6041859,3755.1,3755.0,3.00019439]
[1641063753723,11.67053153,3755.1,3755.0,3.00019439]
[1641063753922,11.66893153,3755.1,3755.0,3.00019439]
[1641063754122,8.6017859,3755.1,3755.0,3.00019439]
[1641063754370,8.6017859,3755.1,3755.0,1.77163931]
[1641063754371,11.7064259,3755.1,3755.0,1.77163931]
[1641063754572,11.7064259,3755.1,3755.0,1.68729439]
[1641063754573,11.7104259,3755.1,3755.0,1.68729439]
[1641063754773,11.7088259,3755.1,3755.0,1.68729439]
[1641063755170,11.7080259,3755.1,3755.0,1.68729439]
[1641063755369,11.7080259,3755.1,3755.0,0.00039439]
[1641063755571,11.7080259,3755.1,3752.7,0.0609]
[1641063755572,0.66621,3753.9,3752.3,0.39830361]
[1641063755771,0.67917088,3753.7,3752.3,0.08434492]
[1641063755976,0.67917088,3753.7,3752.4,0.0022737]
[1641063756472,2.20897003,3753.4,3752.4,0.0022737]
[1641063756773,0.00284211,3753.3,3752.4,0.0022737]
[1641063757176,0.00227369,3753.2,3752.4,0.0022737]
[1641063757377,1.36509529,3753.2,3752.4,0.0022737]
[1641063757578,0.00170527,3753.1,3752.4,0.0022737]
[1641063758111,0.00113684,3753.0,3752.4,0.0022737]
[1641063758317,1.36395844,3753.0,3752.4,0.0022737]
[1641063758620,1.3628216,3753.0,3752.4,0.0022737]
[1641063759017,0.11479151,3752.9,3752.4,0.0022737]
[1641063760822,1.47761311,3752.9,3752.4,0.0022737]
[1641063761423,0.11479151,3752.9,3752.4,0.0022737]
[1641063764181,0.11479151,3752.9,3751.9,0.00511581]
[1641063764584,0.11479151,3752.9,3752.4,0.03175428]
[1641063764781,0.03044659,3752.9,3752.4,0.03175428]
[1641063764981,0.03044659,3752.9,3752.5,0.00170527]
[1641063765819,0.03044659,3752.9,3752.8,1.04326991]
[1641063766024,0.03044659,3752.9,3752.8,1.64326991]
[1641063767227,0.03044659,3752.9,3752.8,17.24326991]
[1641063767626,0.03044659,3752.9,3752.8,18.24326991]
[1641063770583,0.03044659,3752.9,3752.8,18.27502226]
[1641063774730,0.03044659,3752.9,3752.8,18.65802226]
[1641063776334,0.03323762,3752.9,3752.8,18.65802226]
[1641063781018,0.5945,3753.0,3752.9,6.3]
[1641063781217,0.5945,3753.0,3752.9,25.99936627]
[1641063781417,0.59563684,3753.0,3752.9,26.99936627]
[1641063781617,0.44144918,3755.0,3753.1,15.6]
[1641063781823,7.3477,3754.7,3753.6,15.6]
[1641063782118,0.00909478,3754.6,3753.6,16.2]
[1641063782318,0.00909478,3754.6,3753.8,15.6]
[1641063782618,0.44144918,3755.0,3754.3,0.70797478]
[1641063782619,0.00852636,3754.5,3754.3,0.70797478]
[1641063782818,0.00852636,3754.5,3754.3,1.30797478]
[1641063783017,0.44144918,3755.0,3754.3,1.30797478]
[1641063783018,0.00795793,3754.4,3754.3,1.30797478]
[1641063784373,0.00795793,3754.4,3754.3,1.00797478]
[1641063786177,0.00795793,3754.4,3754.3,16.90797478]
[1641063786374,0.00795793,3754.4,3754.3,17.67697478]
[1641063786572,0.00795793,3754.4,3754.3,18.67697478]
[1641063786974,0.01062217,3754.4,3754.3,18.67697478]
[1641063787771,0.01062217,3754.4,3754.3,18.44587478]
[1641063787974,0.01062217,3754.4,3754.3,18.29097478]
[1641063789025,0.01062217,3754.4,3754.3,18.32271363]
[1641063790625,0.35207135,3755.0,3754.4,4.3]
[1641063790829,0.35207135,3755.0,3754.9,0.77598209]
[1641063791626,0.35207135,3755.0,3754.9,1.41840982]
[1641063792665,0.35207135,3755.0,3754.9,2.08412792]
[1641063795071,0.35207135,3755.0,3754.9,17.71586244]
[1641063795471,0.35207135,3755.0,3754.9,18.71586244]
[1641063797520,0.35450462,3755.0,3754.9,18.71586244]
[1641063798819,0.35450462,3755.0,3754.9,3.11586244]
[1641063799218,0.35450462,3755.0,3754.9,5.76586244]
[1641063800870,3.05450462,3755.0,3754.9,5.76586244]
[1641063801069,3.05450462,3755.0,3754.9,3.11586244]
[1641063801270,3.05450462,3755.0,3754.9,18.71586244]
[1641063802270,0.35450462,3755.0,3754.9,18.71586244]
[1641063806331,0.21547981,3755.0,3754.9,18.71586244]
[1641063807180,0.21547981,3755.0,3754.9,19.76444244]
[1641063816180,0.21547981,3755.0,3754.9,4.16444244]
[1641063816379,0.21547981,3755.0,3754.9,2.56444244]
[1641063816779,0.21547981,3755.0,3754.9,1.74603262]
[1641063817985,0.21547981,3755.0,3754.9,1.36303262]
[1641063818220,0.21547981,3755.0,3754.9,0.69731452]
[1641063820624,0.21547981,3755.0,3754.9,1.96302532]
[1641063820926,0.21547981,3755.0,3754.9,2.96302532]
[1641063821971,0.21547981,3755.0,3754.9,20.85076207]
[1641063822568,0.21547981,3755.0,3754.9,18.56302532]
[1641063828746,0.05784142,3755.7,3755.2,0.66561]
[1641063828947,2.05798524,3756.1,3755.2,0.66561]
[1641063828948,1.3628216,3756.1,3755.3,18.65663128]
[1641063829146,1.3628216,3756.1,3755.6,0.66537]
[1641063829377,1.3628216,3756.1,3755.7,3.05663128]
[1641063829580,1.3628216,3756.1,3755.8,15.6]
[1641063829778,1.3628216,3756.1,3755.9,1.71373]
[1641063829979,1.3628216,3756.1,3756.0,16.60821586]
[1641063830181,1.3628216,3756.7,3756.0,17.95658586]
[1641063830381,0.0096632,3756.1,3756.0,1.3]
[1641063830983,0.0096632,3756.1,3756.0,0.3]
[1641063831182,0.0096632,3756.1,3756.0,0.66552]
[1641063831584,0.0096632,3756.1,3755.8,0.6655203]
[1641063831781,0.0096632,3756.1,3755.6,2.6623438]
[1641063831983,0.00909478,3756.0,3755.6,3.87125147]
[1641063832383,0.00852635,3755.9,3755.6,4.53682147]
[1641063832582,0.00852635,3755.9,3755.7,0.66562]
[1641063832787,0.00795793,3755.8,3755.7,1.3312262]
[1641063833119,0.00795793,3755.8,3755.7,2.6312262]
[1641063834127,0.00795793,3755.8,3755.7,2.66295345]
[1641063834327,0.00795793,3755.8,3755.7,18.26295345]
[1641063838579,0.01021538,3755.8,3755.7,18.26295345]
[1641063839881,0.01021538,3755.8,3755.7,18.19638245]
[1641063840281,0.01021538,3755.8,3755.7,17.19638245]
[1641063841124,0.01021538,3755.8,3755.7,0.99734725]
[1641063841526,0.01021538,3755.8,3755.7,0.03172725]
[1641063842325,2.77507093,3755.8,3755.7,0.03172725]
[1641063843129,4.59216639,3755.8,3755.7,0.03172725]
[1641063843533,2.77507093,3755.8,3755.7,0.03172725]
[1641063843731,0.01021538,3755.8,3755.7,0.03172725]
[1641063844876,1.82636906,3755.8,3755.7,0.03172725]
[1641063845275,0.01021538,3755.8,3755.7,0.03172725]
[1641063845776,2.70840594,3755.8,3755.7,0.03172725]
[1641063846274,0.01021538,3755.8,3755.7,0.03172725]
[1641063846880,1.82636906,3755.8,3755.7,0.03172725]
[1641063848230,0.01021538,3755.8,3755.7,0.03172725]
[1641063848831,1.8263035,3755.8,3755.7,0.03172725]
[1641063852571,1.36960316,3755.8,3755.7,0.03172725]
[1641063854474,4.29356207,3755.8,3755.7,0.03172725]
[1641063854679,1.75260316,3755.8,3755.7,0.03172725]
[1641063854874,1.75260316,3755.8,3755.4,0.05737071]
[1641063854875,2.41849316,3755.8,3755.4,0.05737071]
[1641063855175,0.78527951,3755.7,3755.4,0.05737071]
[1641063855374,0.78527951,3755.7,3755.4,7.071e-05]
[1641063855375,1.17067951,3755.7,3755.4,7.071e-05]
[1641063855629,0.11562108,3755.6,3755.4,7.071e-05]
[1641063855830,0.11002108,3755.6,3755.4,7.071e-05]
[1641063856129,6.05625266,3755.5,3755.4,7.071e-05]
[1641063856931,9.02501758,3755.5,3755.4,0.03180081]
[1641063857333,2.97501758,3755.5,3755.4,0.0317301]
[1641063857831,3.07501758,3755.5,3755.4,0.0317301]
[1641063858132,4.88784942,3755.5,3755.4,0.0317301]
[1641063858334,4.78784942,3755.5,3755.4,0.0317301]
[1641063859371,3.08061758,3755.5,3755.4,0.0317301]
[1641063859571,3.08204546,3755.5,3755.4,0.0317301]
[1641063859772,3.08444546,3755.5,3755.4,0.0317301]
[1641063859976,3.07964546,3755.5,3755.4,0.0317301]
[1641063860174,3.07884546,3755.5,3755.4,0.0317301]
[1641063860374,3.07964546,3755.5,3755.4,0.0317301]
[1641063861174,3.08124546,3755.5,3755.4,0.0317301]
[1641063861375,4.89249617,3755.5,3755.4,0.0317301]
[1641063861674,4.89729617,3755.5,3755.4,0.0317301]
[1641063861874,4.89809617,3755.5,3755.4,0.0317301]
[1641063862076,4.89569617,3755.5,3755.4,0.0317301]
[1641063862274,4.89729617,3755.5,3755.4,0.0317301]
[1641063862477,4.89409617,3755.5,3755.4,0.0317301]
[1641063862674,3.08044546,3755.5,3755.4,0.0317301]
[1641063862873,3.07964546,3755.5,3755.4,0.0317301]
[1641063863129,3.08044546,3755.5,3755.4,0.0317301]
[1641063863334,3.07964546,3755.5,3755.4,0.0317301]
[1641063863537,3.08044546,3755.5,3755.4,0.0317301]
[1641063863735,3.08204546,3755.5,3755.4,0.0317301]
[1641063864545,3.08044546,3755.5,3755.4,0.0317301]
[1641063864738,3.08204546,3755.5,3755.4,0.0317301]
[1641063864941,3.08044546,3755.5,3755.4,0.0317301]
[1641063865139,3.07884546,3755.5,3755.4,0.0317301]
[1641063865537,3.08044546,3755.5,3755.4,0.0317301]
[1641063865838,3.08924546,3755.5,3755.4,0.0317301]
[1641063866036,3.08844546,3755.5,3755.4,0.0317301]
[1641063866236,3.08924546,3755.5,3755.4,0.0317301]
[1641063866438,3.08844546,3755.5,3755.4,0.0317301]
[1641063866637,3.09004546,3755.5,3755.4,0.0317301]
[1641063866881,0.11008054,3755.5,3755.4,0.0317301]
[1641063867082,2.84281746,3755.5,3755.4,0.0317301]
[1641063867282,2.73961746,3755.5,3755.4,0.0317301]
[1641063867485,2.84121746,3755.5,3755.4,0.0317301]
[1641063867687,2.84201746,3755.5,3755.4,0.0317301]
[1641063867883,2.84601746,3755.5,3755.4,0.0317301]
[1641063868082,4.65016103,3755.5,3755.4,0.0317301]
[1641063868286,4.65176103,3755.5,3755.4,0.0317301]
[1641063868487,4.64936103,3755.5,3755.4,0.0317301]
[1641063868688,4.65336103,3755.5,3755.4,0.0317301]
[1641063868889,4.65016103,3755.5,3755.4,0.0317301]
[1641063869089,2.84281746,3755.5,3755.4,0.0317301]
[1641063869294,2.84601746,3755.5,3755.4,0.0317301]
[1641063869494,2.84441746,3755.5,3755.4,0.0317301]
[1641063869694,2.84361746,3755.5,3755.4,0.0317301]
[1641063869891,3.54380769,3755.5,3755.4,0.0317301]
[1641063870093,3.54300769,3755.5,3755.4,0.0317301]
[1641063870296,5.34879706,3755.5,3755.4,0.0317301]
[1641063870494,5.34559706,3755.5,3755.4,0.0317301]
[1641063870730,5.34239706,3755.5,3755.4,0.0317301]
[1641063870927,5.34559706,3755.5,3755.4,0.0317301]
[1641063871327,5.34399706,3755.5,3755.4,0.0317301]
[1641063871528,5.34479706,3755.5,3755.4,0.0317301]
[1641063871832,5.34639706,3755.5,3755.4,0.0317301]
[1641063872127,5.34239706,3755.5,3755.4,0.0317301]
[1641063872731,2.61126014,3755.5,3755.4,0.0317301]
[1641063872935,2.61206014,3755.5,3755.4,0.0317301]
[1641063873333,5.35078978,3755.5,3755.4,0.0317301]
[1641063873534,5.34918978,3755.5,3755.4,0.0317301]
[1641063874134,5.34998978,3755.5,3755.4,0.0317301]
[1641063874366,2.61126014,3755.5,3755.4,0.0317301]
[1641063874567,2.60966014,3755.5,3755.4,0.0317301]
[1641063874767,2.51046014,3755.5,3755.4,0.0317301]
[1641063875170,2.61046014,3755.5,3755.4,0.0317301]
[1641063875373,5.2172186,3755.5,3755.4,0.0317301]
[1641063875771,5.3180186,3755.5,3755.4,0.0317301]
[1641063875971,5.3188186,3755.5,3755.4,0.0317301]
[1641063876975,5.3172186,3755.5,3755.4,0.0317301]
[1641063877174,5.3180186,3755.5,3755.4,0.0317301]
[1641063877775,2.61206014,3755.5,3755.4,0.0317301]
[1641063878226,2.61366014,3755.5,3755.4,0.0317301]
[1641063878425,5.18660554,3755.5,3755.4,0.0317301]
[1641063878624,2.51046014,3755.5,3755.4,0.0317301]
[1641063880428,1.81506991,3755.5,3755.4,0.0317301]
[1641063881332,1.81506991,3755.5,3755.4,1.07116013]
[1641063881730,0.00848054,3755.5,3755.4,1.07116013]
[1641063881983,0.00848054,3755.5,3755.4,1.37116013]
[1641063883190,0.00848054,3755.5,3755.4,3.62001569]
[1641063883789,0.00848054,3755.5,3755.4,4.62001569]
[1641063883989,0.00848054,3755.5,3755.4,3.92001569]
[1641063884793,0.00848054,3755.5,3755.4,3.62001569]
[1641063886031,0.00222788,3755.5,3755.4,3.62001569]
[1641063886235,0.00222788,3755.5,3755.4,1.37116013]
[1641063886636,0.00222788,3755.5,3755.4,3.66382199]
[1641063888035,0.00222788,3755.5,3755.4,1.37116013]
[1641063888842,0.00222788,3755.5,3755.4,2.67116013]
[1641063889139,0.00222788,3755.5,3755.4,1.37116013]
[1641063891673,0.00222788,3755.5,3755.4,2.67116013]
[1641063894437,0.00222788,3755.5,3755.4,1.07116013]
[1641063894838,0.00222788,3755.5,3755.4,0.0317301]
[1641063900188,0.00222788,3755.5,3755.4,0.85542182]
[1641063900730,0.00222788,3755.5,3755.4,1.15542182]
[1641063903335,0.00222788,3755.5,3755.4,1.45542182]
[1641063907488,0.00222788,3755.5,3755.4,2.45542182]
[1641063908826,0.00222788,3755.5,3755.4,5.04014404]
[1641063909229,0.00222788,3755.5,3755.4,2.45542182]
[1641063913284,0.00222788,3755.5,3755.4,5.01320413]
[1641063913681,0.00222788,3755.5,3755.4,2.45542182]
[1641063916838,0.00222788,3755.5,3755.4,18.05542182]
[1641063917040,0.00222788,3755.5,3755.4,18.43842182]
[1641063921779,0.05783611,3756.2,3755.5,6.3]
[1641063921980,0.05783611,3756.2,3755.8,17.8962894]
[1641063922183,0.0096632,3756.1,3756.0,6.96544]
[1641063922380,0.0096632,3756.1,3756.0,9.57651353]
[1641063922584,0.0096632,3756.1,3756.0,26.17651353]
[1641063922983,0.0096632,3756.1,3756.0,19.87651353]
[1641063923446,0.0096632,3756.1,3756.0,20.91278551]
[1641063924047,0.0096632,3756.1,3756.0,5.31278551]
[1641063924248,0.0096632,3756.1,3756.0,2.70171198]
[1641063924647,0.0096632,3756.1,3756.0,4.95236975]
[1641063924849,0.0096632,3756.1,3756.0,4.00322962]
[1641063925147,0.0096632,3756.1,3756.0,5.00322962]
[1641063925349,0.0096632,3756.1,3756.0,4.00322962]
[1641063926147,0.0096632,3756.1,3756.0,5.00322962]
[1641063926885,0.0096632,3756.1,3756.0,1.70171198]
[1641063928991,0.0096632,3756.1,3756.0,4.03853985]
[1641063929391,0.0096632,3756.1,3756.0,5.03853985]
[1641063931626,0.0174982,3756.8,3756.1,0.3]
[1641063931827,0.0174982,3756.8,3756.2,0.66554]
[1641063932029,0.0174982,3756.8,3756.2,0.96554]
[1641063932030,0.00341054,3756.7,3756.2,0.96554]
[1641063932427,0.00284212,3756.6,3756.2,0.96554]
[1641063932928,0.0174982,3756.8,3756.2,0.96554]
[1641063932929,0.00227369,3756.5,3756.2,0.96554]
[1641063933128,0.00227369,3756.5,3756.3,1.33108]
[1641063933332,0.00170527,3756.4,3756.3,1.63108]